bitfinex-derivatives/quotes_BNBF0:USTF0_20250425
["timestamp","ask_amount","ask_price","bid_price","bid_amount"]
[1745606209597,2.12377208,605.61,603.48,0.30401587]
[1745606209799,2.12377208,605.61,603.46,0.28800199]
[1745606209996,0.28800079,605.6,603.47,0.30401071]
[1745606211803,2.12377208,605.65,603.48,0.962]
[1745606211999,2.12377208,605.65,603.49,0.30401071]
[1745606212504,2.12377208,605.65,603.5,0.928]
[1745606212704,2.12377208,605.65,603.51,0.30401071]
[1745606213096,0.28799126,605.64,603.51,0.30401071]
[1745606214507,0.28799126,605.64,603.5,2.104]
[1745606214702,2.12377208,605.66,603.51,0.30400893]
[1745606215004,0.2879853,605.63,603.51,0.30400893]
[1745606216904,2.12377208,605.61,603.51,0.30400893]
[1745606218102,0.28799126,605.6,603.51,0.30400893]
[1745606220108,2.12377208,605.43,603.51,0.30400893]
[1745606220708,2.12377208,605.43,603.5,2.104]
[1745606220901,2.12377208,605.43,603.51,0.30402184]
[1745606221103,0.28801271,605.42,603.51,0.30402184]
[1745606223705,2.12377208,605.46,603.51,0.30402184]
[1745606224009,0.28800914,605.41,603.51,0.30402184]
[1745606224709,0.28800914,605.41,603.5,2.39200914]
[1745606224910,0.28800914,605.41,603.51,0.30400656]
[1745606225111,0.28800914,605.41,603.5,2.39200914]
[1745606225311,0.28800914,605.41,603.51,0.30400656]
[1745606226711,2.12377208,605.66,603.5,2.104]
[1745606226911,2.12377208,605.66,603.51,0.30400671]
[1745606228007,0.2879853,605.65,603.51,0.30400671]
[1745606228508,0.2879853,605.65,603.52,0.30400627]
[1745606228708,0.2879853,605.65,603.51,0.30400627]
[1745606228912,0.2879853,605.65,603.52,1.338]
[1745606229214,2.12377208,605.64,603.53,0.30400627]
[1745606229809,2.12377208,605.64,603.52,1.338]
[1745606230014,2.12377208,605.64,603.53,0.30400656]
[1745606231918,1.26282599,605.47,603.53,0.30400656]
[1745606233015,0.28800556,605.46,603.53,0.30400656]
[1745606234415,1.26282599,605.23,603.62,1.04405207]
[1745606234617,1.26282599,605.23,603.63,0.30400656]
[1745606235914,1.26282599,605.23,603.62,1.04405207]
[1745606236113,0.28802463,605.22,603.62,1.04405207]
[1745606236811,0.28802463,605.22,603.63,1.05]
[1745606238316,0.28802463,605.22,603.64,1.081]
[1745606238711,1.26282599,605.34,603.64,1.081]
[1745606239515,1.26282599,605.41,603.64,1.081]
[1745606243119,0.28800079,605.4,603.64,1.081]
[1745606244818,1.26282599,605.43,603.64,1.081]
[1745606245018,0.28799841,605.39,603.64,1.081]
[1745606245818,0.28799841,605.39,603.65,0.30400595]
[1745606246618,0.28799841,605.39,603.65,1.29600595]
[1745606246919,0.28799841,605.39,603.66,0.30400595]
[1745606247718,1.26282599,605.44,603.66,0.30400595]
[1745606248022,0.28798054,605.38,603.66,0.30400595]
[1745606248818,0.28798054,605.38,603.65,0.992]
[1745606249024,0.28798054,605.38,603.66,0.30398947]
[1745606250321,0.28798054,605.38,603.65,0.992]
[1745606250526,0.28798054,605.38,603.66,0.30397426]
[1745606250730,1.26282599,605.37,603.66,0.30397426]
[1745606251029,1.55080057,605.37,603.66,0.30397426]
[1745606251829,1.55080057,605.37,603.65,0.992]
[1745606252029,1.55080057,605.37,603.66,0.30396855]
[1745606254032,0.28797458,605.37,603.66,0.30396855]
[1745606256433,0.28797458,605.37,603.66,1.28996855]
[1745606256638,0.28797458,605.37,603.67,0.30396855]
[1745606256939,1.26282599,605.44,603.67,0.30396855]
[1745606257237,0.28796147,605.38,603.67,0.30396855]
[1745606257433,0.28796147,605.38,603.67,1.36196855]
[1745606257638,0.28796147,605.38,603.68,0.30396855]
[1745606259740,1.26282599,605.46,603.68,0.30396855]
[1745606261034,0.28794837,605.45,603.68,0.30396855]
[1745606261343,0.28794837,605.45,603.68,1.34802062]
[1745606261535,0.28794837,605.45,603.69,0.30396855]
[1745606262435,0.28794837,605.45,603.68,1.04405207]
[1745606262634,0.28794837,605.45,603.7,0.30394583]
[1745606262842,1.26282599,605.47,603.71,0.30394583]
[1745606263041,1.26282599,605.47,603.69,0.30394583]
[1745606263240,1.26282599,605.47,603.7,0.30394583]
[1745606263540,1.26282599,605.47,603.71,0.30394583]
[1745606263736,1.26282599,605.47,603.72,0.30394583]
[1745606263936,1.26282599,605.47,603.73,0.30394583]
[1745606264135,1.26282599,605.47,603.68,1.04405207]
[1745606264136,1.26282599,605.45,603.69,0.30394583]
[1745606264342,1.26282599,605.45,603.7,0.30394583]
[1745606264539,1.26282599,605.45,603.7,1.03]
[1745606264841,1.26282599,605.45,603.71,0.30394583]
[1745606267445,0.28792454,605.51,603.71,0.30394583]
[1745606268838,1.26282599,605.65,603.71,0.30394583]
[1745606269038,0.28790072,605.51,603.71,0.30394583]
[1745606269241,0.28790072,605.51,603.7,1.03]
[1745606269543,1.26282599,605.65,603.71,0.30391022]
[1745606269737,2.12377208,605.97,603.71,0.30391022]
[1745606269738,1.26282599,605.83,603.71,0.30391022]
[1745606270239,0.28790072,605.64,603.71,0.30391022]
[1745606270438,1.26282599,605.83,603.71,0.30391022]
[1745606270639,0.28787929,605.82,603.71,0.30391022]
[1745606271748,1.26282599,605.83,603.71,0.30391022]
[1745606272044,0.28787929,605.81,603.71,0.30391022]
[1745606273946,0.28787929,605.81,603.7,1.31787929]
[1745606274150,0.28787929,605.81,603.71,0.30391138]
[1745606274752,1.26282599,605.85,603.71,0.30391138]
[1745606275047,0.28787691,605.8,603.71,0.30391138]
[1745606277753,1.26282599,605.72,603.71,0.30391138]
[1745606279054,0.28790191,605.71,603.71,0.30391138]
[1745606280450,0.28790191,605.71,603.72,0.30391448]
[1745606280651,1.26282599,605.7,603.71,0.30391448]
[1745606280949,1.26282599,605.7,603.72,1.27091448]
[1745606281156,1.26282599,605.7,603.73,0.30391448]
[1745606282856,1.26282599,605.7,603.72,0.967]
[1745606283056,1.26282599,605.7,603.73,0.30392687]
[1745606283456,1.26282599,605.7,603.74,1.136]
[1745606283660,1.26282599,605.64,603.75,0.30392687]
[1745606285057,0.28790906,605.63,603.75,0.30392687]
[1745606285958,1.26282599,605.51,603.75,0.30392687]
[1745606287159,0.28792454,605.5,603.75,0.30392687]
[1745606287558,0.28792454,605.5,603.74,1.136]
[1745606287759,0.28792454,605.5,603.75,0.30391355]
[1745606288760,1.26282599,605.38,603.8,1.04405207]
[1745606288953,1.26282599,605.38,603.81,0.30391355]
[1745606289360,1.26282599,605.38,603.81,1.18891355]
[1745606289655,1.26282599,605.38,603.82,0.30391355]
[1745606290364,1.26282599,605.38,603.83,0.931]
[1745606290555,1.26282599,605.38,603.84,0.30391355]
[1745606291362,1.26282599,605.34,603.84,0.30391355]
[1745606292260,1.26282599,605.34,603.83,0.931]
[1745606292455,1.26282599,605.34,603.84,0.30391279]
[1745606293860,1.26282599,605.34,603.83,0.931]
[1745606294061,1.26282599,605.34,603.84,0.30388123]
[1745606294256,1.26282599,605.31,603.84,0.30388123]
[1745606295464,1.26282599,605.31,603.83,0.931]
[1745606295664,1.26282599,605.31,603.85,1.32]
[1745606295866,1.26282599,605.31,603.86,0.30386637]
[1745606297266,1.26282599,605.4,603.89,1.04405207]
[1745606297561,1.26282599,605.4,603.9,0.30386637]
[1745606298661,1.26282599,605.4,603.91,0.30385877]
[1745606298863,1.26282599,605.4,603.9,0.30385877]
[1745606300162,0.28789358,605.57,603.86,1.04405207]
[1745606300368,0.28789358,605.57,603.87,0.30385376]
[1745606301766,1.26282599,605.72,603.87,0.30385376]
[1745606302061,0.28784952,605.61,603.87,0.30385376]
[1745606302260,1.26282599,605.72,603.87,0.30385376]
[1745606303067,0.28784952,605.71,603.87,0.30385376]
[1745606303361,0.28784952,605.71,603.88,0.30385376]
[1745606303568,1.26282599,605.74,603.86,0.30385376]
[1745606303765,1.26282599,605.74,603.87,0.30385376]
[1745606303962,1.26282599,605.74,603.86,0.30385376]
[1745606304164,1.26282599,605.74,603.87,0.30385376]
[1745606304366,1.26282599,605.74,603.86,0.30385376]
[1745606304561,1.26282599,605.74,603.87,0.30385376]
[1745606304766,1.26282599,605.74,603.86,0.30385376]
[1745606304968,0.28784833,605.73,603.86,0.30385376]
[1745606307567,1.26282599,605.47,603.87,1.04405207]
[1745606307863,1.26282599,605.47,603.88,0.30385376]
[1745606308068,1.26282599,605.47,603.87,1.04405207]
[1745606308264,1.26282599,605.47,603.88,0.30388429]
[1745606310064,0.2879043,605.5,603.88,0.30388429]
[1745606310268,0.2879043,605.5,603.86,0.30388429]
[1745606310464,0.2879043,605.5,603.87,0.30388429]
[1745606310668,0.2879043,605.5,603.86,0.30388429]
[1745606310869,1.26282599,605.63,603.87,0.30388429]
[1745606311070,1.26282599,605.63,603.86,0.30388429]
[1745606311366,1.26282599,605.63,603.87,0.30388739]
[1745606311570,1.26282599,605.63,603.86,0.30388739]
[1745606311768,1.26282599,605.63,603.87,0.30388739]
[1745606311968,1.26282599,605.63,603.86,0.30388739]
[1745606312168,0.28788762,605.62,603.87,0.30388739]
[1745606312369,1.26282599,605.61,603.88,0.30388739]
[1745606312570,1.26282599,605.61,603.86,0.30388739]
[1745606313465,1.26282599,605.61,603.85,1.32]
[1745606313668,1.26282599,605.61,603.86,0.30388536]
[1745606314371,1.26282599,605.61,603.85,1.32]
[1745606314574,1.26282599,605.61,603.86,0.30388566]
[1745606315070,1.26282599,605.62,603.86,0.30388566]
[1745606315272,0.28789001,605.6,603.86,0.30388566]
[1745606316868,1.26282599,605.62,603.86,0.30388566]
[1745606317272,1.26282599,605.62,603.85,1.32]
[1745606318072,0.28789358,605.61,603.85,1.32]
[1745606318272,0.28789358,605.61,603.86,0.30390912]
[1745606318476,0.28789358,605.61,603.86,1.33590912]
[1745606318671,0.28789358,605.61,603.87,0.30390912]
[1745606319377,1.26282599,605.52,603.87,0.30390912]
[1745606319677,1.26282599,605.52,603.88,1.342]
[1745606319873,1.26282599,605.52,603.89,0.30390912]
[1745606320071,0.28790191,605.51,603.89,0.30390912]
[1745606321582,0.28790191,605.51,603.88,1.342]
[1745606321780,0.28790191,605.51,603.89,0.30389936]
[1745606321980,0.28790191,605.51,603.89,1.20889936]
[1745606322181,0.28790191,605.51,603.9,0.30389936]
[1745606322782,1.26282599,605.52,603.9,0.30389936]
[1745606323079,0.28790072,605.5,603.9,0.30389936]
[1745606323884,0.28790072,605.5,603.89,0.905]
[1745606324085,0.28790072,605.5,603.9,0.30389935]
[1745606325690,0.28790072,605.5,603.89,0.905]
[1745606325889,1.26282599,605.49,603.89,0.905]
[1745606326088,1.55072552,605.49,603.89,0.905]
[1745606327890,0.28789953,605.49,603.89,0.905]
[1745606328891,1.26282599,605.74,603.89,0.905]
[1745606329091,0.28787453,605.48,603.89,0.905]
[1745606329387,1.26282599,605.74,603.89,0.905]
[1745606329992,0.28787453,605.73,603.89,0.905]
[1745606331795,1.26282599,605.77,603.89,0.905]
[1745606332196,0.28787095,605.76,603.89,0.905]
[1745606332995,0.28787095,605.76,603.9,1.162]
[1745606335593,1.26282599,605.75,603.9,1.162]
[1745606337097,1.26282599,605.75,603.9,2.322]
[1745606338099,0.28787215,605.74,603.9,2.322]
[1745606339198,1.26282599,605.56,603.9,2.322]
[1745606342004,2.12377208,606.19,603.9,2.322]
[1745606342005,1.26282599,605.51,603.9,2.322]
[1745606344204,0.28790072,605.5,603.9,2.322]
[1745606349809,1.26282599,605.59,603.9,2.322]
[1745606350006,0.2878912,605.49,603.9,2.322]
[1745606350510,1.26282599,605.6,603.9,2.322]
[1745606351210,0.28789001,605.59,603.9,2.322]
[1745606351507,0.28789001,605.59,603.9,3.425]
[1745606351912,1.26282599,605.54,603.9,3.425]
[1745606352108,1.26282599,605.54,603.9,4.24]
[1745606354113,0.28789715,605.53,603.9,4.24]
[1745606354415,1.26282599,605.48,603.9,4.24]
[1745606355410,1.26282599,605.48,603.91,0.30389561]
[1745606356111,1.55073029,605.48,603.91,0.30389561]
[1745606356916,1.26282599,605.47,603.91,0.30389561]
[1745606358715,1.26282599,605.47,603.91,1.25289561]
[1745606358916,1.26282599,605.47,603.92,0.30389561]
[1745606359816,1.26282599,605.45,603.92,1.04405207]
[1745606360014,1.26282599,605.45,603.93,0.30388481]
[1745606360416,1.26282599,605.45,603.92,1.04405207]
[1745606360610,1.26282599,605.45,603.93,0.30388422]
[1745606362117,1.26282599,605.44,603.93,0.30388422]
[1745606362315,1.26282599,605.44,603.92,0.30388422]
[1745606362510,1.26282599,605.44,603.93,0.30388422]
[1745606362715,1.26282599,605.44,603.94,0.30388422]
[1745606362915,1.26282599,605.44,603.95,0.30388422]
[1745606363211,1.26282599,605.44,603.96,0.30388422]
[1745606363415,1.26282599,605.44,603.91,0.949]
[1745606363812,1.26282599,605.44,603.92,0.30387692]
[1745606364111,1.26282599,605.45,603.92,1.34792899]
[1745606364415,1.26282599,605.45,603.93,0.30387692]
[1745606365012,1.26282599,605.45,603.92,1.04405207]
[1745606367517,1.26282599,605.45,603.92,2.02905207]
[1745606367717,0.28790549,605.48,603.92,0.985]
[1745606367916,1.26282599,605.51,603.92,0.985]
[1745606368114,0.28790549,605.48,603.92,0.985]
[1745606369618,0.28790549,605.48,603.92,1.817]
[1745606373123,0.28790549,605.48,603.92,2.989]
[1745606373825,1.26282599,605.82,603.92,2.989]
[1745606374121,0.28788286,605.47,603.92,2.989]
[1745606374325,1.26282599,605.82,603.92,2.989]
[1745606375125,0.28788286,605.81,603.92,2.989]
[1745606376527,1.26282599,605.79,603.92,2.989]
[1745606377123,0.28788643,605.78,603.92,2.989]
[1745606378431,1.26282599,605.64,603.92,2.989]
[1745606380330,1.26282599,605.63,603.92,2.989]
[1745606381030,0.28791502,605.62,603.92,2.989]
[1745606382834,1.26282599,605.63,603.92,2.989]
[1745606383130,1.26282599,605.63,603.92,4.35]
[1745606383535,1.26282599,605.4,603.92,4.35]
[1745606384130,0.28794241,605.39,603.92,4.35]
[1745606385835,1.26282599,605.44,603.92,4.35]
[1745606387128,0.28794718,605.43,603.92,4.35]
[1745606388735,1.26282599,605.56,603.92,4.35]
[1745606389233,0.28794479,605.55,603.92,4.35]
[1745606391730,1.26282599,605.66,603.92,4.35]
[1745606392935,1.26282599,605.75,603.92,4.35]
[1745606393132,0.28791144,605.65,603.92,4.35]
[1745606393338,1.26282599,605.75,603.92,4.35]
[1745606395039,0.28790072,605.74,603.92,4.35]
[1745606395640,1.26282599,605.68,603.92,4.35]
[1745606398243,0.28790906,605.67,603.92,4.35]
[1745606398540,1.26282599,605.55,603.92,4.35]
[1745606401042,0.28794122,605.54,603.92,4.35]
[1745606401547,1.26282599,605.47,603.92,4.35]
[1745606403247,1.26282599,605.25,603.92,4.35]
[1745606405149,1.26282599,605.24,603.92,4.35]
[1745606408350,1.26282599,605.26,603.92,4.35]
[1745606411954,0.28797815,605.28,603.92,4.35]
[1745606412752,1.26282599,605.41,603.92,4.35]
[1745606413051,0.2879579,605.28,603.92,4.35]
[1745606413353,1.26282599,605.41,603.92,4.35]
[1745606414047,0.2879579,605.4,603.92,4.35]
[1745606414751,1.26282599,605.37,603.92,4.35]
[1745606416047,0.28796266,605.36,603.92,4.35]
[1745606421953,1.26282599,605.56,603.92,4.35]
[1745606422254,0.28795194,605.35,603.92,4.35]
[1745606422449,1.26282599,605.56,603.92,4.35]
[1745606423158,0.28795432,605.55,603.92,4.35]
[1745606424754,1.26282599,605.56,603.92,4.35]
[1745606424955,0.28796147,605.54,603.92,4.35]
[1745606427857,1.26282599,605.56,603.92,4.35]
[1745606428351,1.26282599,605.4,603.92,4.35]
[1745606429150,0.28798054,605.39,603.92,4.35]
[1745606430857,1.26282599,605.4,603.92,4.35]
[1745606432156,0.28799245,605.39,603.92,4.35]
[1745606433258,1.26282599,605.33,603.92,4.35]
[1745606437064,0.28800079,605.32,603.92,4.35]
[1745606437265,1.26282599,605.23,603.92,4.35]
[1745606439265,1.26282599,605.21,603.92,4.35]
[1745606441166,0.2880151,605.2,603.92,4.35]
[1745606442868,1.26282599,605.21,603.92,4.35]
[1745606443465,1.26282599,605.12,603.92,4.35]
[1745606445167,0.28802582,605.14,603.92,4.35]
[1745606445168,1.26282599,605.11,603.92,4.35]
[1745606448771,1.26282599,604.97,603.92,4.35]
[1745606450867,1.26282599,605.02,603.92,4.35]
[1745606453172,1.55089234,605.02,603.92,4.35]
[1745606454068,0.28806635,605.02,603.92,4.35]
[1745606454868,1.26282599,605.17,603.92,4.35]
[1745606455174,0.28804847,605.16,603.92,4.35]
[1745606456176,1.26282599,605.15,603.92,4.35]
[1745606458075,0.28804609,605.14,603.92,4.35]
[1745606460876,1.26282599,605.16,603.92,4.35]
[1745606461177,0.2880449,605.15,603.92,4.35]
[1745606463780,1.26282599,605.22,603.92,4.35]
[1745606465082,0.28802106,605.21,603.92,4.35]
[1745606466882,1.26282599,605.5,603.92,4.35]
[1745606467179,1.26282599,605.49,603.92,4.35]
[1745606467385,1.55081368,605.49,603.92,4.35]
[1745606468885,1.26282599,605.48,603.92,4.35]
[1745606470084,0.28799007,605.47,603.92,4.35]
[1745606471687,1.26282599,605.38,603.92,4.35]
[1745606473187,0.28800199,605.37,603.92,4.35]
[1745606475889,1.26282599,605.45,603.92,4.35]
[1745606477194,0.28799364,605.44,603.92,4.35]
[1745606477895,1.26282599,605.28,603.92,4.35]
[1745606480299,0.28800675,605.27,603.92,4.35]
[1745606483802,1.26282599,605.16,603.92,4.35]
[1745606485207,0.28802106,605.15,603.92,4.35]
[1745606487910,1.26282599,605.16,603.92,4.35]
[1745606488110,0.28802106,605.14,603.92,4.35]
[1745606490916,1.26282599,605.33,603.92,4.35]
[1745606492216,0.28800079,605.32,603.92,4.35]
[1745606493813,1.26282599,605.34,603.92,4.35]
[1745606494119,0.2879996,605.31,603.92,4.35]
[1745606496420,1.26282599,605.3,603.92,4.35]
[1745606498213,0.28800437,605.29,603.92,4.35]
[1745606498814,1.26282599,605.02,603.92,4.35]
[1745606501521,1.26282599,605.01,603.92,4.35]
[1745606506328,1.26282599,605.0,603.92,4.35]
[1745606508332,0.28803893,605.14,603.92,4.35]
[1745606508932,1.26282599,605.23,603.92,4.35]
[1745606510130,0.28801271,605.22,603.92,4.35]
[1745606511833,1.26282599,605.24,603.92,4.35]
[1745606513132,0.28801629,605.23,603.92,4.35]
[1745606514934,1.26282599,605.31,603.92,4.35]
[1745606515233,0.28801033,605.22,603.92,4.35]
[1745606515534,1.26282599,605.31,603.92,4.35]
[1745606515936,2.12377208,605.45,603.92,4.35]
[1745606515937,1.26282599,605.53,603.92,4.35]
[1745606516335,0.28801033,605.3,603.92,4.35]
[1745606516530,1.26282599,605.53,603.92,4.35]
[1745606517936,0.28799841,605.52,603.92,4.35]
[1745606518938,1.26282599,605.47,603.92,4.35]
[1745606522240,0.28800556,605.46,603.92,4.35]
[1745606522636,1.55083155,605.46,603.92,4.35]
[1745606523941,1.26282599,605.46,603.92,4.35]
[1745606525142,0.28800675,605.45,603.92,4.35]
[1745606526240,1.26282599,605.08,603.92,4.35]
[1745606527341,0.28805205,605.07,603.92,4.35]
[1745606529840,1.26282599,605.09,603.92,4.35]
[1745606531248,0.28805086,605.08,603.92,4.35]
[1745606532950,1.26282599,605.09,603.92,4.35]
[1745606533249,0.28805086,605.07,603.92,4.35]
[1745606535845,1.26282599,605.02,603.92,4.35]
[1745606539153,1.26282599,604.99,603.92,4.35]
[1745606542054,1.26282599,605.02,603.92,4.35]
[1745606544256,0.2880449,605.11,603.92,4.35]
[1745606544855,1.26282599,605.13,603.92,4.35]
[1745606546158,0.28803178,605.12,603.92,4.35]
[1745606546658,1.26282599,605.09,603.92,4.35]
[1745606548962,0.28800079,605.26,603.92,4.35]
[1745606550856,1.26282599,605.37,603.92,4.35]
[1745606551258,0.28796743,605.26,603.92,4.35]
[1745606551557,1.26282599,605.37,603.92,4.35]
[1745606551865,2.12377208,605.77,603.92,4.35]
[1745606551866,1.26282599,605.47,603.92,4.35]
[1745606552263,0.28795552,605.46,603.92,4.35]
[1745606553961,1.26282599,605.47,603.92,4.35]
[1745606554163,1.26282599,605.53,603.92,4.35]
[1745606554362,0.28795552,605.45,603.92,4.35]
[1745606554564,1.26282599,605.53,603.92,4.35]
[1745606556168,0.28794837,605.52,603.92,4.35]
[1745606556869,1.26282599,605.55,603.92,4.35]
[1745606558070,0.28794599,605.54,603.92,4.35]
[1745606562875,1.26282599,605.63,603.92,4.35]
[1745606564177,0.28793169,605.62,603.92,4.35]
[1745606564480,1.26282599,605.55,603.92,4.35]
[1745606566178,0.28794122,605.54,603.92,4.35]
[1745606568881,1.26282599,605.55,603.92,4.35]
[1745606569181,1.26282599,605.64,603.92,4.35]
[1745606570281,0.2879305,605.63,603.92,4.35]
[1745606572083,1.26282599,605.64,603.92,4.35]
[1745606573185,0.28792812,605.63,603.92,4.35]
[1745606577987,1.26282599,605.65,603.92,4.35]
[1745606578690,1.26282599,605.54,603.92,4.35]
[1745606579185,0.28794003,605.53,603.92,4.35]
[1745606580891,1.26282599,605.54,603.92,4.35]
[1745606581292,1.26282599,605.49,603.92,4.35]
[1745606582090,0.28794122,605.48,603.92,4.35]
[1745606583295,1.26282599,605.41,603.92,4.35]
[1745606585093,0.2879579,605.4,603.92,4.35]
[1745606586996,1.26282599,605.51,603.92,4.35]
[1745606588195,0.2879579,605.5,603.92,4.35]
[1745606589796,1.26282599,605.54,603.92,4.35]
[1745606590096,0.28798054,605.53,603.92,4.35]
[1745606591095,1.26282599,605.27,603.92,4.35]
[1745606593197,0.28801271,605.26,603.92,4.35]
[1745606596000,1.26282599,605.58,603.92,4.35]
[1745606596194,1.26282599,605.41,603.92,4.35]
[1745606597198,0.28801271,605.4,603.92,4.35]
[1745606598900,1.26282599,605.48,603.92,4.35]
[1745606600200,0.28798769,605.47,603.92,4.35]
[1745606601900,1.26282599,605.79,603.92,4.35]
[1745606603204,0.28795075,605.78,603.92,4.35]
[1745606603805,1.26282599,605.74,603.92,4.35]
[1745606605607,1.26282599,605.76,603.92,4.35]
[1745606606202,0.28796147,605.75,603.92,4.35]
[1745606607910,1.26282599,605.76,603.92,4.35]
[1745606608106,1.26282599,605.4,603.92,4.35]
[1745606609114,0.28800437,605.39,603.92,4.35]
[1745606610913,1.26282599,605.38,603.92,4.35]
[1745606611214,1.55083036,605.38,603.92,4.35]
[1745606613717,0.28800437,605.38,603.92,4.35]
[1745606613913,1.26282599,605.5,603.92,4.35]
[1745606615221,0.28799245,605.49,603.92,4.35]
[1745606616721,1.26282599,605.32,603.92,4.35]
[1745606617220,0.2880139,605.31,603.92,4.35]
[1745606618823,1.55083989,605.31,603.92,4.35]
[1745606619923,1.26282599,605.31,603.92,4.35]
[1745606620320,0.2880151,605.3,603.92,4.35]
[1745606620829,1.26282599,605.2,603.92,4.35]
[1745606623230,0.28804013,605.19,603.92,4.35]
[1745606623431,1.26282599,605.1,603.92,4.35]
[1745606626134,1.26282599,605.39,603.92,4.35]
[1745606627131,0.2880294,605.38,603.92,4.35]
[1745606628330,1.26282599,605.34,603.92,4.35]
[1745606629334,0.28804251,605.33,603.92,4.35]
[1745606631937,1.26282599,605.37,603.92,4.35]
[1745606633137,1.26282599,605.44,603.92,4.35]
[1745606633338,0.2880437,605.36,603.92,4.35]
[1745606633539,1.26282599,605.44,603.92,4.35]
[1745606635038,0.28803536,605.43,603.92,4.35]
[1745606635434,1.26282599,605.38,603.92,4.35]
[1745606638240,0.28804251,605.37,603.92,4.35]
[1745606638434,1.26282599,605.08,603.92,4.35]
[1745606641641,1.26282599,605.05,603.92,4.35]
[1745606643042,2.12377208,606.12,603.92,4.35]
[1745606643043,1.26282599,604.96,603.92,4.35]
[1745606644144,1.26282599,605.09,603.92,4.35]
[1745606645243,0.28807709,605.08,603.92,4.35]
[1745606646946,1.26282599,605.1,603.92,4.35]
[1745606647244,0.28805086,605.07,603.92,4.35]
[1745606649948,1.26282599,605.61,603.92,4.35]
[1745606651147,0.28796743,605.6,603.92,4.35]
[1745606651648,1.26282599,605.57,603.92,4.35]
[1745606653847,1.26282599,605.54,603.92,4.35]
[1745606656351,1.26282599,605.53,603.92,4.35]
[1745606657151,0.28797696,605.52,603.92,4.35]
[1745606658851,1.26282599,605.37,603.92,4.35]
[1745606661053,1.26282599,605.2,603.92,4.35]
[1745606662354,0.28802106,605.19,603.92,4.35]
[1745606664956,1.26282599,605.47,603.92,4.35]
[1745606666260,0.28799364,605.46,603.92,4.35]
[1745606670965,1.26282599,605.66,603.92,4.35]
[1745606671363,0.287971,605.65,603.92,4.35]
[1745606672365,1.26282599,605.55,603.92,4.35]
[1745606674260,0.28798411,605.54,603.92,4.35]
[1745606675366,1.26282599,605.5,603.92,4.35]
[1745606678163,1.26282599,605.49,603.92,4.35]
[1745606680265,1.26282599,605.38,603.92,4.35]
[1745606681270,0.28800437,605.37,603.92,4.35]
[1745606682568,1.26282599,605.32,603.92,4.35]
[1745606683375,0.28801152,605.31,603.92,4.35]
[1745606685971,1.26282599,605.21,603.92,4.35]
[1745606687273,0.28802463,605.2,603.92,4.35]
[1745606691973,1.26282599,605.29,603.92,4.35]
[1745606693277,0.2880151,605.28,603.92,4.35]
[1745606693979,1.55084109,605.28,603.92,4.35]
[1745606694975,1.26282599,605.28,603.92,4.35]
[1745606696282,0.28801629,605.27,603.92,4.35]
[1745606698082,1.26282599,605.47,603.92,4.35]
[1745606698478,0.28799364,605.46,603.92,4.35]
[1745606703989,1.26282599,605.48,603.92,4.35]
[1745606704290,0.28799245,605.47,603.92,4.35]
[1745606706186,1.26282599,605.04,603.92,4.35]
[1745606708997,1.26282599,604.99,603.92,4.35]
[1745606712198,0.28805086,605.07,603.92,4.35]
[1745606713002,1.26282599,605.1,603.92,4.35]
[1745606714300,1.26282599,604.98,603.92,4.35]
[1745606717503,1.55087804,605.07,603.92,4.35]
[1745606719003,1.26282599,605.07,603.92,4.35]
[1745606719302,1.55086731,605.07,603.92,4.35]
[1745606719804,0.28804132,605.07,603.92,4.35]
[1745606721907,1.26282599,605.28,603.92,4.35]
[1745606722205,1.26282599,605.28,603.92,3.365]
[1745606722402,0.28802344,605.06,603.92,3.365]
[1745606722606,1.26282599,605.28,603.92,3.365]
[1745606723208,0.28802344,605.27,603.92,3.365]
[1745606723509,0.28802344,605.27,603.92,0.832]
[1745606724008,0.28802344,605.27,603.43,1.04405207]
[1745606724308,0.28802344,605.27,603.44,0.30406619]
[1745606725010,1.26282599,605.28,603.44,0.30406619]
[1745606725208,2.12377208,605.63,603.44,0.30406619]
[1745606725209,1.26282599,605.27,603.44,0.30406619]
[1745606725400,1.26282599,605.27,603.42,1.04405207]